Cogmind - Beta 10.2 @@@ ROGUE MODE // 2020.11.08 @ 14:29:12 // Halloween2020/ForbiddenLore Player: Demise Result: Destroyed by 8R-AWN with 8R-AWN's Boregun Performance ------------- Evolutions (0) 0 Regions Visited (3) 600 Robots Destroyed (22) 110 Value Destroyed (337) 337 Prototype IDs (23) 460 Alien Tech Used (0) 0 Bonus (300) 300 TOTAL SCORE: 1807 Bonus ------- Aligned with FarCom 300 Cogmind --------- Core Integrity 0/250 Matter 300/300 Energy 100/100 System Corruption 11% Temperature Cool (0) Movement Walking (45) Location -10/Exiles Parts ------- > --- POWER (1) -------- (None) > --- PROPULSION (2) --- Potential Leg Potential Leg > --- UTILITY (2) ------ High-capacity Storage Unit > --- WEAPON (2) ------- Light Assault Rifle > --- INVENTORY (12) --- Ion Engine Light Nuclear Core Light Treads Light Treads Light Treads Grenade Launcher Peak State ------------ > --- POWER ------------ Ion Engine > --- PROPULSION ------- Potential Leg Potential Leg > --- UTILITY ---------- High-capacity Storage Unit High-capacity Storage Unit > --- WEAPON ----------- Light Cannon Light Cannon > --- INVENTORY -------- Ion Engine Nuclear Core Nuclear Core Light Nuclear Core Light Fission Core Light Treads Light Treads Light Treads Wheel Chronowheel Beam Cannon Assault Rifle Light Assault Rifle Light Assault Rifle AWS/Autocannon Grenade Launcher Rocket Launcher [Rating: 31] Favorites ----------- Power Ion Engine Engine Ion Engine Power Core Light Nuclear Core Propulsion Light Treads Treads Light Treads Leg Potential Leg Utility Large Storage Unit Storage Large Storage Unit Weapon Light Cannon Energy Gun Medium Laser Ballistic Gun Assault Rifle Ballistic Cannon Light Cannon Launcher Grenade Launcher Build | -11 -10 -10 -10 ------- Run | Scr Mat Min Exi Slots Evolved . | . . . . Power . | . . . . Propulsion . | . . . . Utility . | . . . . Weapon . | . . . . Parts Attached 25 | 1 10 3 11 Power 4 | . 1 1 2 Engine 1 | . . 1 . Core 3 | . 1 . 2 Reactor . | . . . . Propulsion 4 | . 2 . 2 Treads 2 | . 2 . . Leg 2 | . . . 2 Wheel . | . . . . Hover . | . . . . Flight . | . . . . Utility 8 | 1 4 . 3 Device . | . . . . Storage 8 | 1 4 . 3 Processor . | . . . . Hackware . | . . . . Protection . | . . . . Artifact . | . . . . Weapon 9 | . 3 2 4 Energy Gun . | . . . . Energy Cannon . | . . . . Ballistic Gun 4 | . 1 . 3 Ballistic Cannon 3 | . 2 1 . Launcher 2 | . . 1 1 Special Weapon . | . . . . Impact Weapon . | . . . . Slashing Weapon . | . . . . Piercing Weapon . | . . . . Special Melee Weapon . | . . . . Unidentified Prototypes . | . . . . Parts Lost 6 | . 1 . 5 Power 2 | . . . 2 Propulsion . | . . . . Utility 1 | . . . 1 Weapon 3 | . 1 . 2 Highest Loss Streak 3 | . 1 . 3 Average Slot Usage (%) 98 | . 99 100 97 Engine 8 | . 2 7 13 Core 5 | . 11 6 . Treads 23 | . 24 28 19 Leg 4 | . 3 . 8 Storage 27 | . 28 28 26 Energy Gun 3 | . 10 . . Ballistic Gun 2 | . 4 . 3 Ballistic Cannon 21 | . 12 27 21 Naked Turns . | . . . . Heaviest Build 75 | 17 43 43 75 Greatest Support 60 | 20 40 40 60 Greatest Overweight (x) 1 | . 1 1 1 Average Overweight (x) . | . . 1 . Largest Inventory Capacity 20 | 8 16 16 20 Average Capacity 14 | 7 11 16 17 Most Carried 19 | 8 15 16 19 Average Carried 12 | 6 10 15 13 Final Capacity 16 | 8 16 16 12 Final Carried 16 | 8 14 16 6 Class Distribution -------------------- 79% | Mutant 20% | Hauler-Mutant Dominant Class ---------------- Mutant | -10/Materials Mutant | -10/Mines Hauler-Mutant | -10/Exiles Resources | -11 -10 -10 -10 ----------- Run | Scr Mat Min Exi Matter Collected 762 | 210 239 166 147 Remotely . | . . . . Salvage Created 601 | 203 324 70 4 Parts 44 | 13 24 7 . Haulers Intercepted . | . . . . Recyclers Shooed 1 | 1 . . . Parts Field Recycled . | . . . . Retrieved Matter . | . . . . Parts Self-Destructed . | . . . . Prevented . | . . . . Kills | -11 -10 -10 -10 ------- Run | Scr Mat Min Exi Combat Hostiles Destroyed 10 | . 5 3 2 Melee 1 | . 1 . . Guns 4 | . 4 . . Cannons 1 | . . 1 . AOE 4 | . . 2 2 Classes Destroyed 7 | 3 2 1 1 Worker 4 | 2 2 . . Tunneler 6 | 5 . 1 . Recycler 1 | 1 . . . Watcher 3 | . 3 . . Swarmer 2 | . . 2 . Grunt 6 | . 5 1 . Assembled 2 | . . . 2 Best Kill Streak 4 | 4 3 2 2 Combat Bots Only 3 | . 3 2 2 Max Kills in Single Turn 2 | 1 1 2 1 Gunslinging . | . . . . Exploded 2 | . . 2 1 Melee 1 | . 1 . . Uniques/NPCs Destroyed . | . . . . Combat | -11 -10 -10 -10 -------- Run | Scr Mat Min Exi Damage Taken 1236 | . 215 12 1009 Core 260 | . 50 . 210 Absorbed by Shields . | . . . . Core Remaining (%) 100 | 100 . . . Volleys Fired 60 | 23 25 4 8 Largest 2 | 2 2 2 1 Hottest 100 | 100 100 70 30 Shots Fired 106 | 41 50 7 8 Gun 95 | 41 48 . 6 Cannon 8 | . 2 6 . Launcher 3 | . . 1 2 Special . | . . . . Kinetic 25 | . 13 6 6 Thermal 78 | 41 37 . . Explosive 3 | . . 1 2 Electromagnetic . | . . . . Robot Hit Streak 6 | 6 6 1 5 Robot Miss Streak 6 | 4 6 2 . Penetration Max . | . . . . Secondary Targets . | . . . . Shots Hit Robots 59 | 25 28 2 4 Core Hits 32 | 9 12 4 7 Critical Hits . | . . . . Critical Kills . | . . . . Critical Parts Destroyed . | . . . . Melee Attacks . | . . . . Impact . | . . . . Slashing . | . . . . Piercing . | . . . . Sneak Attacks . | . . . . Combat Hostiles . | . . . . Follow-up Attacks . | . . . . Damage Inflicted 1566 | 291 283 161 831 Guns 582 | 291 265 . 26 Cannons 70 | . 16 54 . Explosions 208 | . . 107 101 Melee . | . . . . Ramming 706 | . 2 . 704 Kinetic 147 | . 67 54 26 Thermal 505 | 291 214 . . Explosive 208 | . . 107 101 Electromagnetic . | . . . . Impact . | . . . . Slashing . | . . . . Piercing . | . . . . Highest Corruption 11 | . . . 11 Average Corruption 8 | . . . 8 Corruption Purged . | . . . . Effects 3 | . . . 3 Message Errors 1 | . . . 1 Matter Fused 1 | . . . 1 Heat Flow Errors 1 | . . . 1 Overload Shots . | . . . . Overflow Damage 59 | . . . 59 Projectiles . | . . . . Explosions . | . . . . Melee 59 | . . . 59 Knockbacks 7 | . . . 7 Impact 7 | . . . 7 Kinetic . | . . . . Secondary . | . . . . Self-Inflicted Damage 169 | . . . 169 Shots . | . . . . Rammed 15 | . . . 15 Targets Rammed 28 | . 1 . 27 Kicked 12 | . . . 12 Crushed 1 | . 1 . . Highest Temperature 378 | 342 378 36 237 Average Temperature 120 | 148 105 16 112 Received Heat Transfer 117 | . 111 6 . Effects 3 | 1 . . 2 Energy Bleed 1 | . . . 1 Interference 2 | 1 . . 1 Siege Activations . | . . . . Robots Corrupted . | . . . . Combat Hostiles . | . . . . Parts Fried . | . . . . Impact Corruptions 3 | . . . 3 Robots Melted . | . . . . Combat Hostiles . | . . . . Parts Melted 7 | 4 3 . . Heat Transferred 1480 | 851 629 . . Parts Sabotaged . | . . . . Parts Stolen . | . . . . Parts Stripped . | . . . . Power Chain Reactions . | . . . . Missiles Intercepted . | . . . . Alert | -11 -10 -10 -10 ------- Run | Scr Mat Min Exi Peak Influence 257 | 40 257 95 . Initial 26 | . 26 . . Average 72 | 19 122 32 . Maximum Alert Level 1 | . 1 . . Low Security (%) 92 | 100 83 100 . Level 1 7 | . 16 . . Level 2 . | . . . . Level 3 . | . . . . Level 4 . | . . . . Level 5 . | . . . . High Security . | . . . . Max Security . | . . . . Squads Dispatched 4 | . 3 1 . Investigation 3 | . 2 1 . Extermination . | . . . . Reinforcement 1 | . 1 . . Assault . | . . . . Garrison . | . . . . Intercept . | . . . . Construction Impeded . | . . . . Haulers Reinforced . | . . . . Stealth | -11 -10 -10 -10 --------- Run | Scr Mat Min Exi Distress Signals 1 | . 1 . . Communications Jammed . | . . . . Distress Signals . | . . . . Times Spotted 18 | . 11 4 3 Peak Tracking Total 9 | . 4 3 9 Tactical Retreats . | . . . . Traps | -11 -10 -10 -10 ------- Run | Scr Mat Min Exi Traps Triggered 1 | . 1 . . Indirectly . | . . . . Trap Hack Attempts . | . . . . Triggered . | . . . . Disarmed . | . . . . Reprogrammed . | . . . . Reused . | . . . . Traps Extracted . | . . . . Installed . | . . . . Triggered . | . . . . Exploded 3 | . . . 3 Machines | -11 -10 -10 -10 ---------- Run | Scr Mat Min Exi Machines Disabled 3 | . . . 3 Max in Single Turn 1 | . . . 1 Machines Sabotaged . | . . . . Garrisons Compromised . | . . . . Overloaded Fab Kills . | . . . . Fab Network Shutdowns . | . . . . Hacking | -11 -10 -10 -10 --------- Run | Scr Mat Min Exi Machines Accessed 9 | . 6 1 2 Terminals 6 | . 5 1 . Fabricators . | . . . . Repair Stations . | . . . . Recycling Units 1 | . 1 . . Scanalyzers . | . . . . Garrison Access . | . . . . Total Hacks 47 | . 20 3 24 Successful 34 | . 10 . 24 Failed 13 | . 10 3 . Catastrophic 1 | . 1 . . Database Lockouts . | . . . . Manual 24 | . 20 3 1 Terminals 22 | . 19 3 . Fabricators . | . . . . Repair Stations . | . . . . Recycling Units 1 | . 1 . . Scanalyzers . | . . . . Garrison Access . | . . . . Terminal Hacks 29 | . 5 . 24 Record 23 | . . . 23 Part Schematic 1 | . 1 . . Robot Analysis 4 | . 4 . . EX-Prototype ID Bank 1 | . . . 1 Fabricator Hacks . | . . . . Repair Station Hacks . | . . . . Recycling Unit Hacks 1 | . 1 . . Report Inventory 1 | . 1 . . Scanalyzer . | . . . . Garrison Access Hacks . | . . . . Unauthorized Hacks 4 | . 4 . . Terminals 4 | . 4 . . Assimilate 1 | . 1 . . Botnet 3 | . 3 . . Fabricators . | . . . . Repair Stations . | . . . . Recycling Units . | . . . . Scanalyzers . | . . . . Garrison Access . | . . . . Data Cores Recovered . | . . . . Used . | . . . . Hacking Detections 6 | . 5 1 . Full Trace Events 2 | . 1 1 . Feedback Events . | . . . . Feedback Blocked . | . . . . Robot Schematics Acquired . | . . . . Robots Built . | . . . . Matter . | . . . . Time . | . . . . Total Robot Build Rating . | . . . . Part Schematics Acquired 1 | . 1 . . Parts Built . | . . . . Matter . | . . . . Time . | . . . . Total Part Build Rating . | . . . . Parts Repaired . | . . . . Time . | . . . . Parts Recycled . | . . . . Recycled Matter . | . . . . Retrieved Matter . | . . . . Retrieved Components . | . . . . Parts Scanalyzed . | . . . . Part Schematics Acquired . | . . . . Parts Damaged . | . . . . Bothacking | -11 -10 -10 -10 ------------ Run | Scr Mat Min Exi Used RIF Installer . | . . . . Robots Hacked . | . . . . Non-combat . | . . . . Combat . | . . . . Robot Hacks Applied . | . . . . Relay Couplers Released . | . . . . Robots Rewired . | . . . . Allies Hacked . | . . . . Hacks Repelled . | . . . . Allies | -11 -10 -10 -10 -------- Run | Scr Mat Min Exi Total Allies 3 | . . 3 . Largest Group 3 | . . 3 3 Highest-Rated Group 40 | . . 40 40 Highest-Rated Ally 16 | . . 16 16 Total Orders 1 | . . . 1 STAY 1 | . . . 1 Ally Attacks 6 | . . . 6 Total Damage 4 | . . . 4 Kills . | . . . . Allies Corrupted . | . . . . Allies Melted . | . . . . Intel | -11 -10 -10 -10 ------- Run | Scr Mat Min Exi Robot Analysis Total 4 | . 4 . . Derelict Logs Recovered 3 | . . 3 . Drone Launches . | . . . . Drone Recoveries . | . . . . Exploration | -11 -10 -10 -10 ------------- Run | Scr Mat Min Exi Turns Passed 2988 | 125 822 871 1170 Spaces Moved 1642 | 38 435 475 694 Core . | . . . . Treads 1310 | . 391 475 444 Legs 332 | 38 44 . 250 Wheels . | . . . . Hover . | . . . . Flight . | . . . . Fastest Speed 45 | 120 120 180 45 Average Speed 157 | 120 159 180 143 Slowest Speed 180 | 120 180 180 180 Overloaded Moves 119 | . . . 119 Propulsion Burnouts . | . . . . Robots Hopped . | . . . . Cave-ins Triggered . | . . . . Exploration Rate (%) 61 | 3 73 98 70 Regions Visited 3 Branch Regions 2 Pre-discovered Areas 2 | . . 1 1 Known Exits Taken . | . . . . Unknown Exits Taken 3 | 1 1 1 . Scrap Searched 2 | . . 2 . Spaces Dug . | . . . . Terrain Destroyed 15 | . . 7 8 Melee . | . . . . Projectile . | . . . . AOE 15 | . . 7 8 Terrain Rammed . | . . . . Walls Destroyed . | . . . . Machines Disabled . | . . . . Actions | -11 -10 -10 -10 --------- Run | Scr Mat Min Exi Total 1949 | 76 518 483 872 Wait 131 | 11 20 . 100 Move 1639 | 37 434 474 694 Hop . | . . . . Pick Up 26 | 3 13 1 9 Fast Attach 6 | 1 3 1 1 Attach 6 | . 3 . 3 Detach 5 | . 2 1 2 Swap 13 | . 4 2 7 Drop 35 | 1 13 . 21 Fire 60 | 23 25 4 8 Melee . | . . . . Ram . | . . . . Kick 27 | . . . 27 Crush 1 | . 1 . . Escape Stasis . | . . . . Rewire . | . . . . Trap . | . . . . Miscellaneous . | . . . . Route ------- -11/Scrapyard -10/Materials (discovered 2 exits: [*Mat] / *Min) -10/Mines (discovered 3 exits: [*Mat x2] / *Exi) -10/Exiles (discovered 2 exits: [*Min x2]) History --------- Turn | Location | Event 13 | -11/Scrapyard | Discovered new exit (range 3) 126 | -11/Scrapyard | Entered Materials 258 | -10/Materials | Met 8R-AWN 296 | -10/Materials | Discovered new exit (range 16) 306 | -10/Materials | Build established: Mutant 722 | -10/Materials | Discovered new exit (range 8) 948 | -10/Materials | Entered Mines 950 | -10/Mines | Followed 8R-AWN into the Mines 1007 | -10/Mines | Discovered new exit (range 14) 1023 | -10/Mines | Received a Rocket Launcher from a helpful Derelict 1147 | -10/Mines | Discovered new exit (range 5) 1194 | -10/Mines | Learned Materials stockpile data 1228 | -10/Mines | Learned location of Zion (-7) 1291 | -10/Mines | Discovered new exit (range 3) 1441 | -10/Mines | Learned Materials stockpile data 1564 | -10/Mines | Assisted by bots powering up and referring to "LRC-V3" 1819 | -10/Mines | Entered Exiles 1819 | -10/Exiles | Accompanied by 3 allies 1846 | -10/Exiles | Discovered new exit (range 15) 1868 | -10/Exiles | Welcomed by 8R-AWN 1891 | -10/Exiles | Met EX-HEX 1992 | -10/Exiles | Met EX-DEC 2168 | -10/Exiles | Discovered new exit (range 14) 2334 | -10/Exiles | Learned about 8R-AWN's background 2399 | -10/Exiles | Build established: Hauler-Mutant 2488 | -10/Exiles | Met EX-BIN 2510 | -10/Exiles | Aligned with FarCom system 2511 | -10/Exiles | Given EX-Vault access code 2553 | -10/Exiles | Opened EX-Vault 2567 | -10/Exiles | Found Potential Leg 2570 | -10/Exiles | Found Potential Leg 2575 | -10/Exiles | Found Chronowheel 2581 | -10/Exiles | Found AWS/Autocannon 2620 | -10/Exiles | Warned to stay clear of 0b10 Research branches 2777 | -10/Exiles | Attacked by the Exiles 2910 | -10/Exiles | Core integrity fell below 50% 2944 | -10/Exiles | System corruption reached 10% 2951 | -10/Exiles | Core integrity fell below 20% 2989 | -10/Exiles | Destroyed by 8R-AWN with 8R-AWN's Boregun Last Messages --------------- 02976_ Penetrated by HV Slug. 02976_ HV Slug penetrates Wall. 02976_ Penetrated by HV Slug. 02976_ HV Slug penetrates Wall. 02976_ Acquired 2 matter. 02976_ Slammed into 8R-AWN. 02978_ Acquired 15 matter. 02980_ HV Slug penetrates Wall. 02980_ Penetrated by HV Slug. 02980_ HV Slug penetrates Wall. 02981_ Slammed into 8R-AWN. 02983_ Extracted 10 matter. 02984_ Extracted 1 matter. 02984_ Penetrated by HV Slug. 02984_ Lgt. Nuclear Core destroyed. 02984_ HV Slug penetrates Wall. 02984_ Penetrated by HV Slug. 02984_ HV Slug penetrates Wall. 02986_ Extracted 1 matter. 02989_ Penetrated by HV Slug. Map ----- +----------------------------------------------------+ | ?????????????????????????????????????????????????? | | ?????????#####???????????????????????????????????? | | ????????## ##??????????????????????????????????? | | ????????# #??????????????????????????????????? | | ????????# < #??????????????????????????????????? | | ????????# ###????????????????????????????????? | | ????????# !!! #????????????????????????????????? | | ????????# !!!=]#?????????????????????????????????? | | ????????##!!!!]#?????????????????????????????????? | | ?????????# ]]]##????????????????????????????????? | | ?????????## #????????????#######?????????????? | | ??????????# #######??#???# "#?????????????? | | ??????????# # ##? ???# "#?????????????? | | ??????????## ## ???# "#?????????????? | | ???????????##" #; ??## ""#?????????????# | | ???????????#"" ;####" ""#???????????? | | ???????????#### ;#" #????????????" | | ??????????????## #"" ###????????????" | | ???????????????#"## % # #???????????"" | | ???????????????####### %%% ####?????????"" | | ?????????????????????##;%*[%%% ##???????? | | ???????????????#######;%=%%*%% ???" | | ???????????????# !! % !!%!% #??????# | | ???????????????#! %%=%## #"####???### | | ???????????????#! %%%%"### % ""#####X# | | ???????????????#! %%%g@##?##" | | ???????????????# """"""#%#???#" % | | ???????????????############???#### % | | ?????????????????????????????????##" % | | ???????????????????????????????????### | | ?????????????????????????????????????## | | ??????????????????????????????????????## | | ???????????????????????????????????????##" | | ????????????????????????????????????????#""" | | ???????????????????????????????????????##" | | ???????????????????????????????????????#"" | | ???????????????????????????????????????#""" | | ???????????????????????????????????????""" | | ???????????????????????????????????????""" | | ???????????????????????????????????????"" | | ???????????????????????????????????????""" | | ???????????????????????????????????????"" | | ???????????????????????????????????????#"" | | ???????????????????????????????????????#"""" | | ????????????????????????????????????????# | | ?????????????????????????????????????????" | | ?????????????????????????????????????????"""" | | ?????????????????????????????????????????"" | | ?????????????????????????????????????????? | | ??????????????????????????????????????????"" | +----------------------------------------------------+ Best States ------------- Heat Dissipation 25 Energy Generation 14 Energy Capacity 550 Matter Stores 300 Matter Capacity 300 Sight Range 16 Terrain Scan Density 10 Evasion (%) 51 Recoil Reduction 2 Item Schematics ----------------- Hcp. Storage Unit | -10/Materials | Hacked Robot Schematics ------------------ None Fabricated ------------ Nothing Alien Tech Used ----------------- None Achievements -------------- None Challenges ------------ None Game ------ Seed ParticleFlightRegenerator Manual? 0 Play Time 00:22:48 Cumulative 88.1 hours Start 2020.11.08 @ 14:06:06 End 2020.11.08 @ 14:29:12 Sessions 1 Manual Loads 0 Difficulty Rogue Special Mode Halloween2020/ForbiddenLore Game No. 76 Rogue 76 Adventurer 0 Explorer 0 Win Type - Total 0 Types 0/0/0/0/0/0/0/0/0 Lore% 48 Gallery% 55 Achievement% 52 Wizard Run 0 Options --------- ASCII 0 Keyboard 1 Movement Numpad Keybinds 0 Fullscreen 1 Font 12/Terminus Map View 83x54 Tactical HUD 1 Map Filters NONE Filters NONE Steam 1 RUN: 2263c76c-570f-4661-a92e-478fd8dd8656